bitfinex-derivatives/quotes_ETHF0:USTF0_20250607
["timestamp","ask_amount","ask_price","bid_price","bid_amount"]
[1749265991762,0.6351,2487.8,2487.5,4.88003707]
[1749265991964,0.80325,2487.9,2487.7,0.80331]
[1749265992261,3.8493,2488.0,2487.5,4.88003707]
[1749265992457,1.44473,2488.0,2487.8,0.80328]
[1749265992656,0.80325,2487.9,2487.7,0.8033]
[1749265993160,0.6415,2488.0,2487.6,0.80333]
[1749265993356,0.80329,2487.8,2487.6,0.80333]
[1749265993559,0.80327,2487.9,2487.6,0.80332]
[1749265993757,0.80327,2487.9,2487.5,4.88003707]
[1749265994057,0.80327,2487.9,2487.7,0.8033]
[1749265994252,0.80329,2487.8,2487.6,0.80332]
[1749265994465,0.6415,2488.0,2487.5,5.68340707]
[1749265994760,0.6498,2487.7,2487.5,5.68340707]
[1749265995458,0.6498,2487.7,2487.6,0.80335]
[1749265996866,1.3495,2487.9,2487.7,0.8033]
[1749265996867,0.80326,2487.9,2487.7,0.8033]
[1749265997464,0.80328,2487.8,2487.6,0.80333]
[1749265997663,0.6415,2488.0,2487.6,0.80335]
[1749265997863,2.04817493,2487.9,2487.7,0.80331]
[1749265998063,0.80335,2487.6,2487.5,4.88103707]
[1749265998267,2.10239,2487.8,2487.6,0.80333]
[1749265998560,0.80326,2487.9,2487.5,4.88103707]
[1749265998756,0.80329,2487.8,2487.6,0.80334]
[1749265998961,1.2991,2487.9,2487.6,0.80334]
[1749265999358,1.2991,2487.9,2487.7,0.80331]
[1749265999567,0.80328,2487.8,2487.6,0.80333]
[1749266001468,0.80333,2487.7,2487.5,5.68440707]
[1749266001968,1.4916,2487.8,2487.5,5.68440707]
[1749266002170,1.4916,2487.8,2487.6,0.80333]
[1749266002364,0.6415,2488.0,2487.5,4.88103707]
[1749266002567,1.44474,2488.0,2487.7,0.80329]
[1749266002769,1.44474,2488.0,2487.8,0.80328]
[1749266003265,1.44474,2488.0,2487.5,6.15863707]
[1749266003472,0.6415,2488.0,2487.8,0.80326]
[1749266003771,0.80325,2487.9,2487.7,0.8033]
[1749266004162,0.6415,2488.0,2487.7,0.8033]
[1749266004367,0.80326,2487.9,2487.7,0.8033]
[1749266005464,0.80328,2487.8,2487.6,0.80333]
[1749266005660,0.80333,2487.7,2487.5,5.68440707]
[1749266006272,0.8033,2487.8,2487.6,0.80334]
[1749266008173,0.8033,2487.8,2487.7,3.2078]
[1749266009069,0.80328,2487.8,2487.7,3.2078]
[1749266009272,0.80328,2487.8,2487.6,0.80333]
[1749266009575,0.80326,2487.9,2487.7,0.8033]
[1749266010076,0.80328,2487.8,2487.7,0.8033]
[1749266010373,0.80328,2487.9,2487.8,0.80328]
[1749266010676,0.80328,2487.8,2487.5,4.88103707]
[1749266010877,0.6415,2488.0,2487.7,0.80329]
[1749266011071,1.24540728,2487.9,2487.7,0.80329]
[1749266011379,0.80329,2487.8,2487.7,0.80331]
[1749266011668,0.80329,2487.8,2487.7,4.01111]
[1749266011869,0.6415,2488.0,2487.7,3.2078]
[1749266012069,1.24555349,2487.9,2487.7,3.2078]
[1749266012269,0.80328,2487.8,2487.7,3.2078]
[1749266012874,0.80327,2487.9,2487.7,3.2078]
[1749266013173,0.6415,2488.0,2487.7,3.2078]
[1749266013374,2.0491027,2487.9,2487.7,4.0111]
[1749266013573,0.80326,2487.9,2487.7,4.0111]
[1749266014267,1.44473,2488.0,2487.8,0.80327]
[1749266014472,2.05157566,2487.9,2487.7,4.0111]
[1749266014775,1.24854598,2487.8,2487.7,4.0111]
[1749266015167,1.44473,2488.0,2487.8,0.80327]
[1749266015363,2.0517953,2487.9,2487.7,3.2078]
[1749266015567,2.0518253,2487.8,2487.7,3.2078]
[1749266015775,2.0518253,2487.8,2487.6,0.80334]
[1749266015975,0.80328,2487.8,2487.6,0.80334]
[1749266016174,1.49138,2487.8,2487.6,0.80334]
[1749266016976,1.49138,2487.8,2487.5,4.88103707]
[1749266016977,1.49138,2487.8,2487.7,0.80331]
[1749266017277,2.74032628,2487.8,2487.6,0.80333]
[1749266017476,1.49138,2487.8,2487.6,0.80333]
[1749266017674,0.80331,2487.7,2487.5,4.88103707]
[1749266017871,0.80331,2487.7,2487.5,0.80939707]
[1749266018071,0.80331,2487.7,2487.6,4.872]
[1749266018273,2.05223391,2487.7,2487.6,4.872]
[1749266020473,3.41313391,2487.7,2487.6,4.872]
[1749266021381,3.41315391,2487.7,2487.6,4.872]
[1749266021782,3.41315391,2487.7,2487.5,0.00603707]
[1749266021783,0.80335,2487.6,2487.5,0.00603707]
[1749266022076,2.00848,2487.5,2486.7,3.2078]
[1749266022280,0.80357,2486.9,2486.7,3.2078]
[1749266022677,3.17545578,2488.1,2487.6,0.80334]
[1749266022882,1.24514845,2488.0,2487.4,5.213]
[1749266023078,1.25118552,2487.9,2487.5,0.69443707]
[1749266023283,0.80331,2487.7,2487.5,0.69443707]
[1749266023476,1.23100704,2487.6,2487.5,0.00603707]
[1749266023671,6.51565704,2487.6,2487.5,0.00603707]
[1749266024076,11.51565704,2487.6,2487.5,0.00603707]
[1749266024283,8.30785704,2487.6,2487.5,0.00603707]
[1749266024672,11.51565704,2487.6,2487.5,0.00603707]
[1749266025784,12.20225704,2487.6,2487.5,0.00603707]
[1749266026786,8.99445704,2487.6,2487.5,0.00603707]
[1749266028090,12.20225704,2487.6,2487.5,0.00603707]
[1749266031393,7.20225704,2487.6,2487.5,0.00603707]
[1749266036287,0.80351,2487.1,2486.9,9.0543]
[1749266037592,0.80349,2487.2,2486.9,9.0543]
[1749266037784,0.80352,2487.1,2486.9,9.0543]
[1749266037985,1.3462,2487.5,2486.9,9.0543]
[1749266038190,1.22531691,2487.4,2486.9,9.0543]
[1749266038393,0.80354,2487.1,2486.9,9.0543]
[1749266038691,0.80354,2487.1,2486.9,9.85787]
[1749266038893,0.8035,2487.2,2486.9,9.85786]
[1749266039094,1.2937,2487.3,2486.9,9.85786]
[1749266039293,0.80347,2487.2,2486.9,9.85786]
[1749266039493,0.80347,2487.2,2486.9,9.0543]
[1749266040095,0.80347,2487.2,2486.9,9.85787]
[1749266040288,0.80349,2487.2,2486.9,9.85787]
[1749266040489,0.80344,2487.3,2486.9,9.0543]
[1749266040689,0.80344,2487.3,2487.0,2.11951]
[1749266041394,0.80344,2487.3,2487.1,0.8035]
[1749266041595,0.80344,2487.3,2487.0,2.11952]
[1749266041894,0.80344,2487.3,2487.1,0.8035]
[1749266042094,0.80344,2487.3,2487.0,1.316]
[1749266042295,0.80344,2487.3,2487.1,0.8035]
[1749266042890,0.80344,2487.3,2487.0,2.11952]
[1749266043595,0.80344,2487.3,2487.1,1.3535]
[1749266044296,0.80344,2487.3,2487.1,2.157]
[1749266044596,5.1735,2487.6,2487.1,1.3535]
[1749266044790,0.80344,2487.3,2487.1,2.157]
[1749266045496,0.80348,2487.2,2487.1,1.3535]
[1749266047691,0.80347,2487.3,2487.1,2.15699]
[1749266048197,5.1735,2487.6,2487.1,1.3535]
[1749266048396,0.80347,2487.3,2487.1,2.15701]
[1749266048590,5.1735,2487.6,2487.1,1.3535]
[1749266048788,0.80347,2487.2,2487.1,1.3535]
[1749266048995,0.80346,2487.3,2487.1,2.15701]
[1749266049198,0.80347,2487.2,2487.1,1.3535]
[1749266049498,0.80343,2487.4,2487.2,0.80346]
[1749266049698,0.80342,2487.4,2487.2,0.80346]
[1749266049898,0.80342,2487.4,2487.3,0.6992]
[1749266050397,2.03216565,2487.4,2487.3,0.6992]
[1749266051797,2.03216565,2487.4,2487.3,1.50264]
[1749266051997,2.03216565,2487.4,2487.3,0.6992]
[1749266055104,3.17545578,2488.9,2487.5,13.8978]
[1749266055400,0.6471,2489.3,2488.7,3.2078]
[1749266055603,0.6471,2489.3,2488.8,5.108]
[1749266055794,0.80292,2489.0,2488.8,5.108]
[1749266055994,3.2078,2489.1,2488.7,0.00603707]
[1749266056200,0.80296,2488.8,2488.7,0.00603707]
[1749266061912,0.80316,2488.2,2488.0,3.2078]
[1749266062307,0.80314,2488.3,2488.0,3.2078]
[1749266063114,0.80316,2488.2,2488.0,3.2078]
[1749266063407,0.80313,2488.3,2488.0,4.011]
[1749266063613,0.80315,2488.2,2488.0,3.2078]
[1749266063814,0.80313,2488.3,2488.0,4.011]
[1749266064013,0.6812,2488.5,2488.1,0.80317]
[1749266064212,0.80311,2488.4,2488.3,3.2078]
[1749266064413,0.80307,2488.5,2488.3,3.2078]
[1749266064916,0.80307,2488.5,2488.4,0.7002]
[1749266066214,0.80307,2488.5,2488.4,3.908]
[1749266066617,0.80304,2488.6,2488.4,3.908]
[1749266066819,0.80306,2488.5,2488.4,3.908]
[1749266067016,0.6486,2488.7,2488.4,3.908]
[1749266067220,0.6486,2488.7,2488.0,1.3932]
[1749266067221,0.80322,2488.0,2487.9,0.00603707]
[1749266068013,1.3367,2488.1,2487.9,0.80925707]
[1749266068215,1.3446,2488.2,2488.0,0.80319]
[1749266068519,0.80312,2488.3,2488.1,0.80318]
[1749266069118,0.8031,2488.4,2488.1,3.2078]
[1749266069319,0.80307,2488.5,2488.1,3.2078]
[1749266069619,0.8031,2488.4,2488.1,4.01097]
[1749266070223,0.8031,2488.4,2488.1,3.2078]
[1749266070416,0.80312,2488.3,2488.1,3.2078]
[1749266070617,0.80312,2488.3,2488.1,8.3148]
[1749266071519,0.80315,2488.2,2488.1,3.2078]
[1749266071721,0.80315,2488.2,2488.1,8.3148]
[1749266075728,0.80315,2488.2,2488.1,3.2078]
[1749266079518,0.80322,2488.0,2487.9,0.00603707]
[1749266080228,2.13532,2488.0,2487.9,0.00603707]
[1749266094045,3.25839405,2488.0,2487.9,0.00603707]
[1749266100251,6.46619405,2488.0,2487.9,0.00603707]
[1749266102549,8.1978,2488.6,2487.9,4.01708707]
[1749266102746,0.80319,2488.2,2487.9,4.01708707]
[1749266102953,0.80317,2488.2,2487.9,5.36038707]
[1749266103151,0.80317,2488.2,2488.0,1.3433]
[1749266103352,0.80314,2488.3,2488.0,2.14652]
[1749266103663,0.8031,2488.4,2488.0,2.1465]
[1749266103860,1.92688496,2488.3,2488.0,2.1465]
[1749266104062,0.80312,2488.4,2488.1,0.8032]
[1749266104356,4.01085,2488.6,2488.3,0.80312]
[1749266104752,4.01085,2488.6,2488.4,1.3949]
[1749266105762,0.80307,2488.5,2488.2,9.66675]
[1749266105952,0.80311,2488.4,2488.2,9.66675]
[1749266106359,3.2078,2488.6,2488.2,9.66675]
[1749266106360,0.80309,2488.5,2488.2,9.66675]
[1749266107458,4.01086,2488.6,2488.3,0.80312]
[1749266107659,4.01086,2488.6,2488.3,2.19422]
[1749266107959,0.80307,2488.5,2488.3,2.19422]
[1749266108255,3.2078,2488.6,2488.3,2.19422]
[1749266108256,4.01085,2488.6,2488.3,2.19422]
[1749266108460,0.80307,2488.5,2488.3,2.19422]
[1749266109151,0.80305,2488.6,2488.3,2.19422]
[1749266109452,1.3124,2488.8,2488.3,1.3911]
[1749266109658,0.80313,2488.3,2488.2,8.8626]
[1749266109851,0.80313,2488.3,2488.2,3.8736]
[1749266110052,0.80313,2488.3,2488.2,0.6658]
[1749266110248,2.00769,2488.5,2487.9,0.00603707]
[1749266110462,0.80323,2488.0,2487.9,5.64303707]
[1749266111549,0.80323,2488.0,2487.9,0.00603707]
[1749266111755,4.01103,2488.0,2487.9,0.00603707]
[1749266113559,5.15814794,2488.0,2487.9,0.00603707]
[1749266114260,4.01103,2488.0,2487.9,0.00603707]
[1749266114758,5.15812401,2488.0,2487.9,0.00603707]
[1749266115455,4.01103,2488.0,2487.9,0.00603707]
[1749266115950,3.2078,2488.0,2487.9,0.00603707]
[1749266116153,3.2078,2488.4,2488.0,0.80322]
[1749266116357,0.80317,2488.2,2488.0,0.6766]
[1749266116863,0.80318,2488.2,2488.0,0.6766]
[1749266117263,0.8032,2488.1,2488.0,0.6766]
[1749266118865,4.5362,2488.4,2488.0,0.6766]
[1749266119161,0.8032,2488.1,2488.0,0.6766]
[1749266124560,4.5362,2488.4,2488.0,0.6766]
[1749266124561,0.80319,2488.2,2488.0,0.6766]
[1749266124760,0.80319,2488.2,2488.0,1.47983]
[1749266124961,0.80319,2488.2,2488.0,0.6766]
[1749266125268,0.8032,2488.1,2488.0,0.6766]
[1749266127162,0.80319,2488.2,2488.0,0.6766]
[1749266127463,4.5362,2488.4,2488.0,0.6766]
[1749266127664,0.8032,2488.1,2488.0,0.6766]
[1749266128572,0.80318,2488.2,2488.0,0.6766]
[1749266128868,0.8032,2488.1,2488.0,0.6766]
[1749266129268,4.5362,2488.4,2488.0,0.6766]
[1749266129470,2.4420412,2488.3,2488.0,0.6766]
[1749266129773,1.2969,2488.3,2488.0,0.6766]
[1749266130162,0.80318,2488.2,2488.0,0.6766]
[1749266130361,2.10004,2488.3,2488.1,0.80319]
[1749266130558,2.10004,2488.3,2488.0,0.6766]
[1749266130559,0.80314,2488.3,2488.0,0.6766]
[1749266130763,0.80317,2488.2,2488.0,1.47982]
[1749266132070,3.2078,2488.4,2488.1,0.80318]
[1749266132267,3.2078,2488.4,2488.0,0.6766]
[1749266132466,0.80318,2488.2,2488.0,0.6766]
[1749266132667,0.80318,2488.2,2488.1,0.8032]
[1749266132870,0.80316,2488.3,2488.1,0.8032]
[1749266133870,0.80317,2488.2,2488.1,0.8032]
[1749266134174,0.80317,2488.2,2488.0,1.47982]
[1749266134575,0.8032,2488.1,2488.0,1.47982]
[1749266134874,0.80323,2488.0,2487.9,0.00603707]
[1749266135073,1.47893,2488.0,2487.9,4.92103707]
[1749266135772,0.6757,2488.0,2487.9,5.72429707]
[1749266135962,0.6757,2488.0,2487.9,0.80929707]
[1749266136165,0.6757,2488.0,2487.9,5.72429707]
[1749266136365,1.47893,2488.0,2487.9,4.92103707]
[1749266136568,0.6757,2488.0,2487.9,4.92103707]
[1749266136767,1.47893,2488.0,2487.9,4.92103707]
[1749266136972,0.6757,2488.0,2487.9,5.72429707]
[1749266137473,1.47893,2488.0,2487.9,5.72429707]
[1749266137669,1.3145,2488.3,2488.1,0.80317]
[1749266137866,0.80317,2488.2,2488.0,1.45432]
[1749266138274,0.80317,2488.2,2488.0,1.4543]
[1749266138469,0.80317,2488.2,2488.0,0.6511]
[1749266138671,0.80317,2488.2,2488.0,1.45431]
[1749266138977,2.11766,2488.3,2488.1,0.8032]
[1749266139169,0.8032,2488.2,2488.0,1.45432]
[1749266139370,2.11765,2488.3,2488.1,0.80318]
[1749266139672,0.80315,2488.3,2488.1,0.80318]
[1749266139878,0.80315,2488.3,2488.2,0.80317]
[1749266140079,1.47883,2488.4,2488.2,0.80315]
[1749266140379,0.80314,2488.3,2488.1,3.2078]
[1749266140577,0.80314,2488.3,2488.1,4.01098]
[1749266142478,1.4788,2488.4,2488.2,0.80317]
[1749266143084,0.6757,2488.4,2488.1,3.2078]
[1749266143279,1.47883,2488.4,2488.1,4.01098]
[1749266143580,1.47883,2488.4,2488.2,0.80314]
[1749266143782,1.47882,2488.4,2488.2,0.80314]
[1749266144181,1.47882,2488.4,2488.2,0.80315]
[1749266144681,1.47882,2488.4,2488.1,3.2078]
[1749266144682,1.47882,2488.4,2488.1,4.01098]
[1749266145189,2.80052,2488.4,2488.1,4.01098]
[1749266145577,0.80315,2488.3,2488.1,4.01098]
[1749266148281,2.80052,2488.4,2488.2,0.80317]
[1749266148486,0.80316,2488.3,2488.1,4.01099]
[1749266148781,0.80315,2488.3,2488.1,4.01099]
[1749266152688,2.80052,2488.4,2488.2,0.80315]
[1749266152888,2.80052,2488.4,2488.3,4.893]
[1749266153985,2.80052,2488.4,2488.3,8.1008]
[1749266160193,2.80052,2488.4,2488.3,4.893]
[1749266160786,1.9974,2488.4,2488.2,4.893]
[1749266160988,0.80314,2488.3,2488.2,4.893]
[1749266161388,0.80317,2488.2,2488.0,4.66212]
[1749266161591,0.80317,2488.2,2488.1,4.893]
[1749266162695,0.6509,2488.5,2488.1,4.893]
[1749266162988,0.00603707,2489.1,2488.4,2.00776]
[1749266163192,1.46321707,2489.1,2488.9,4.01073]
[1749266163391,0.00603707,2489.1,2489.0,5.5703]
[1749266163598,0.6543,2489.6,2489.1,2.0072]
[1749266163794,0.6688,2489.9,2489.3,3.2078]
[1749266163998,0.80276,2489.5,2489.4,4.893]
[1749266164302,0.80274,2489.6,2489.4,8.1008]
[1749266164502,0.80275,2489.5,2489.4,8.1008]
[1749266165199,0.80275,2489.5,2489.4,3.2078]
[1749266165398,0.80275,2489.5,2489.4,8.1008]
[1749266166092,0.80281,2489.3,2489.2,0.00602482]
[1749266166298,0.80281,2489.3,2489.2,4.89802482]
[1749266166499,0.80281,2489.3,2489.2,0.00602482]
[1749266166798,0.80281,2489.3,2489.2,4.89802482]
[1749266167200,2.7687,2489.4,2489.2,4.89802482]
[1749266167402,1.45703,2489.6,2489.3,0.80281]
[1749266167597,1.45703,2489.6,2489.4,3.2078]
[1749266167794,0.80275,2489.5,2489.4,3.8526]
[1749266170007,0.80275,2489.5,2489.4,3.2078]
[1749266170209,0.80281,2489.3,2489.2,0.00602482]
[1749266170506,0.80281,2489.3,2489.2,8.10582482]
[1749266170805,0.8028,2489.4,2489.2,8.10582482]
[1749266171400,0.6543,2489.6,2489.2,8.10582482]
[1749266171605,0.00602482,2489.7,2489.5,4.01053]
[1749266171798,0.00602482,2489.7,2489.6,4.892]
[1749266172720,0.00602482,2489.7,2489.6,5.69472]
[1749266173507,0.80257,2490.1,2489.6,9.892]
[1749266173706,3.2078,2490.2,2489.8,3.2078]
[1749266173911,0.8026,2490.0,2489.9,4.892]
[1749266174410,0.80257,2490.1,2489.9,4.892]
[1749266174708,4.01636482,2490.2,2489.9,5.69461]
[1749266174906,0.00602482,2490.2,2489.9,9.892]
[1749266175108,0.00602482,2490.2,2490.0,5.5257]
[1749266175406,0.00602482,2490.2,2490.0,0.6347]
[1749266175407,0.80856482,2490.2,2490.0,0.6347]
[1749266175608,0.80856482,2490.2,2490.1,5.5871]
[1749266175805,0.80856482,2490.2,2490.1,0.6961]
[1749266176407,0.80262,2489.9,2489.8,3.2078]
[1749266176602,0.00602482,2490.2,2489.8,8.0948]
[1749266176805,0.00602482,2490.2,2489.9,0.6961]
[1749266177005,0.00602482,2490.2,2490.1,0.80255]
[1749266177404,0.00602482,2490.2,2490.1,4.01035]
[1749266178012,0.80854482,2490.2,2490.1,3.2078]
[1749266178511,0.80854482,2490.2,2490.1,8.0948]
[1749266178707,0.80854482,2490.2,2490.1,3.2078]
[1749266178908,0.80854482,2490.2,2490.1,8.0948]
[1749266179308,0.80259,2490.0,2489.9,0.6961]
[1749266179514,0.80259,2490.0,2489.9,5.5831]
[1749266180916,0.80259,2490.0,2489.9,0.6961]
[1749266181114,0.80259,2490.0,2489.9,5.5821]
[1749266181412,0.80262,2489.9,2489.8,3.2078]
[1749266181708,2.11382,2489.9,2489.8,3.2078]
[1749266181915,2.11382,2489.9,2489.8,8.0938]
[1749266182215,2.11382,2489.9,2489.8,3.2078]
[1749266182414,2.11382,2489.9,2489.8,8.0938]
[1749266182712,1.3112,2489.9,2489.5,3.2078]
[1749266183011,0.80278,2489.4,2489.3,24.9788]
[1749266183313,0.80278,2489.4,2489.3,29.178]
[1749266183509,1.3613,2489.7,2489.3,29.178]
[1749266183814,0.80267,2489.8,2489.5,4.01052]
[1749266184007,0.80265,2489.8,2489.6,0.80271]
[1749266184208,4.01043,2489.9,2489.7,5.68868]
[1749266184408,3.2078,2489.9,2489.7,5.68868]
[1749266184610,4.01042,2489.9,2489.8,0.6401]
[1749266184915,2.6676,2490.1,2489.8,4.65055]
[1749266185119,0.80855482,2490.2,2490.0,0.80257]
[1749266185413,0.80855482,2490.2,2490.1,5.68855]
[1749266185414,0.00602482,2490.2,2490.1,5.68855]
[1749266189711,0.00602482,2490.2,2490.1,8.89635]
[1749266190118,0.00602482,2490.2,2490.1,8.0938]
[1749266190618,0.80854482,2490.2,2490.1,8.0938]
[1749266190918,0.80854482,2490.2,2490.1,3.2078]
[1749266191217,0.80854482,2490.2,2490.1,8.0938]
[1749266191620,0.80854482,2490.2,2490.1,3.2078]
[1749266191909,0.80854482,2490.2,2490.1,8.0938]
[1749266192116,0.80258,2490.1,2489.8,3.8479]
[1749266192315,0.80259,2490.0,2489.9,4.886]
[1749266192516,2.78427,2490.1,2489.9,4.886]
[1749266192716,2.78427,2490.1,2489.8,4.65052]
[1749266192916,2.78427,2490.1,2490.0,4.886]
[1749266193111,0.00602482,2490.2,2490.1,0.80255]
[1749266193311,0.00602482,2490.2,2490.1,8.89635]
[1749266195113,0.00602482,2490.2,2490.1,4.01035]
[1749266195313,0.00602482,2490.2,2490.1,8.89635]
[1749266195513,0.00602482,2490.2,2490.1,10.28585]
[1749266196620,0.00602482,2490.2,2490.1,8.89635]
[1749266199523,0.00602482,2490.2,2490.1,8.89535]
[1749266201626,0.80854482,2490.2,2490.1,3.2078]
[1749266201826,1.39032482,2490.2,2490.1,8.0928]
[1749266202515,1.39032482,2490.2,2490.1,8.89535]
[1749266205325,1.39032482,2490.2,2490.1,4.01035]
[1749266205527,1.39032482,2490.2,2490.1,8.89535]
[1749266205926,2.19284482,2490.2,2490.1,3.2078]
[1749266206125,2.19284482,2490.2,2490.1,8.0898]
[1749266206425,2.19284482,2490.2,2490.1,4.882]
[1749266207321,1.39032482,2490.2,2489.8,3.2078]
[1749266207526,0.80259,2490.0,2489.9,4.882]
[1749266207929,0.80257,2490.1,2489.9,5.68462]
[1749266208131,1.3418,2490.0,2489.9,5.68462]
[1749266208730,2.14439,2490.0,2489.9,5.68462]
[1749266209133,2.14439,2490.0,2489.9,4.882]
[1749266209529,0.80262,2489.9,2489.8,3.2078]
[1749266209726,2.6823,2489.9,2489.8,8.89245]
[1749266211134,0.00602482,2490.2,2490.1,0.80255]
[1749266211333,0.80854482,2490.2,2490.0,0.80256]
[1749266213039,0.00602482,2490.2,2490.1,4.01035]
[1749266213240,0.80854482,2490.2,2490.1,3.2078]
[1749266213440,0.00602482,2490.2,2490.1,4.01035]
[1749266216434,0.00602482,2490.2,2490.1,3.2078]
[1749266216634,0.80255,2490.1,2489.9,1.49191]
[1749266216938,0.80255,2490.1,2490.0,4.882]
[1749266217141,2.06495,2490.1,2490.0,4.882]
[1749266217541,0.80259,2490.0,2489.8,4.01043]
[1749266217838,0.80259,2490.0,2489.9,5.68462]
[1749266218146,1.44419,2490.0,2489.9,4.882]
[1749266218749,1.44419,2490.0,2489.8,4.01043]
[1749266219046,1.2624,2489.9,2489.8,4.01045]
[1749266219246,1.2624,2489.9,2489.8,8.89245]
[1749266221156,1.2624,2489.9,2489.8,4.01045]
[1749266221451,1.2624,2489.9,2489.8,8.89245]
[1749266222452,2.06502,2489.9,2489.8,3.2078]
[1749266222652,2.06502,2489.9,2489.8,8.0898]
[1749266223553,2.06502,2489.9,2489.8,3.2078]
[1749266224049,0.80278,2489.4,2489.3,24.292]
[1749266224355,0.80281,2489.3,2489.2,8.09582482]
[1749266224560,2.86581,2489.3,2489.2,8.09582482]
[1749266225159,2.063,2489.3,2489.2,8.09582482]
[1749266225452,2.86581,2489.3,2489.2,8.09582482]
[1749266228158,2.86581,2489.3,2489.2,4.88802482]
[1749266228351,2.86581,2489.3,2489.2,0.00602482]
[1749266228560,7.86581,2489.3,2489.2,0.00602482]
[1749266229153,7.86581,2489.3,2489.1,4.883]
[1749266229154,0.80291,2489.0,2488.9,4.883]
[1749266229349,0.80301,2488.7,2488.6,29.165]
[1749266229659,0.80301,2488.7,2488.6,4.883]
[1749266229859,0.80307,2488.5,2488.4,3.2078]
[1749266230156,0.80307,2488.5,2488.3,4.883]
[1749266230157,0.80323,2488.0,2487.9,24.287]
[1749266230354,1.3337,2488.4,2487.9,29.17]
[1749266230554,0.80323,2488.0,2487.9,0.00602482]
[1749266233462,0.6487,2488.3,2488.0,0.8032]
[1749266233659,0.6487,2488.3,2488.1,4.884]
[1749266233869,1.45184,2488.3,2488.1,4.884]
[1749266234163,0.6487,2488.3,2488.1,4.884]
[1749266234554,0.6487,2488.3,2488.1,5.68718]
[1749266234757,0.6487,2488.3,2488.2,0.80317]
[1749266234963,3.2078,2488.4,2488.2,0.80315]
[1749266235154,0.67932482,2488.6,2488.5,0.80307]
[1749266235357,0.67932482,2488.6,2488.5,4.885]
[1749266235561,0.00602482,2488.6,2488.5,5.68807]
[1749266235762,0.00602482,2488.6,2488.5,6.34807]
[1749266237667,0.80906482,2488.6,2488.4,3.2078]
[1749266237867,0.80307,2488.5,2488.4,3.2078]
[1749266238163,2.78257,2488.5,2488.4,4.882]
[1749266239066,0.80311,2488.4,2488.2,0.80315]
[1749266239268,2.78259,2488.5,2488.3,4.882]
[1749266239866,2.78259,2488.5,2488.3,5.68513]
[1749266240868,2.78257,2488.5,2488.4,4.882]
[1749266241367,3.46147,2488.5,2488.4,4.882]
[1749266242265,3.46147,2488.5,2488.1,1.46318]
[1749266242266,0.80313,2488.4,2488.3,4.882]
[1749266242656,2.15183,2488.4,2488.3,4.882]
[1749266243974,1.3487,2488.4,2488.3,5.68513]
[1749266244269,2.13869,2488.5,2488.3,5.68513]
[1749266244470,0.8031,2488.4,2488.3,4.882]
[1749266245070,3.48158,2488.5,2488.3,5.68512]
[1749266245276,0.8031,2488.4,2488.3,4.882]
[1749266245470,2.6785,2488.5,2488.1,0.66]
[1749266245674,0.80313,2488.3,2488.2,4.882]
[1749266245968,2.6785,2488.5,2488.2,4.882]
[1749266246161,0.80313,2488.3,2488.2,4.882]
[1749266246369,0.80313,2488.3,2488.2,5.68517]
[1749266246669,0.80317,2488.2,2488.0,4.01101]
[1749266246868,0.80317,2488.2,2488.1,4.882]
[1749266247075,0.80315,2488.3,2488.1,5.6852]
[1749266247570,0.80315,2488.3,2488.1,5.68518]
[1749266248270,0.80315,2488.3,2488.2,4.882]
[1749266248869,3.2078,2488.4,2488.0,3.2078]
[1749266249172,3.2078,2488.4,2488.1,4.882]
[1749266249173,2.07287,2488.2,2488.1,4.882]
[1749266253271,0.80323,2488.0,2487.9,4.88902482]
[1749266253667,0.80323,2488.0,2487.9,0.00602482]
[1749266253867,2.09153,2488.0,2487.9,0.00602482]
[1749266258374,3.24482333,2488.0,2487.9,0.00602482]
[1749266258671,2.09153,2488.0,2487.9,0.00602482]
[1749266258869,0.6789,2488.5,2487.9,0.00602482]
[1749266259171,1.83748374,2488.4,2488.2,0.80314]
[1749266259376,0.6843,2488.4,2488.2,0.80314]
[1749266259679,0.80296,2488.9,2488.5,0.80307]
[1749266259866,5.2235,2489.1,2488.5,5.68607]
[1749266260073,0.80301,2488.7,2488.5,5.68607]
[1749266260370,5.2235,2489.1,2488.5,5.68607]
[1749266260571,0.80295,2488.9,2488.5,5.68607]
[1749266260766,2.0157,2489.1,2488.5,5.68607]
[1749266260972,0.80292,2489.0,2488.5,5.68607]
[1749266261172,0.80293,2489.0,2488.5,5.68607]
[1749266261370,2.0157,2489.1,2488.5,5.68607]
[1749266261876,2.8186,2489.1,2488.5,5.68607]
[1749266262576,0.80293,2489.0,2488.5,5.68607]
[1749266263180,0.80294,2488.9,2488.5,5.68607]
[1749266263577,0.80293,2489.0,2488.5,5.68607]
[1749266263980,2.81859,2489.1,2488.5,5.68607]
[1749266264180,0.80291,2489.0,2488.5,5.68607]
[1749266264581,0.80294,2488.9,2488.5,5.68607]
[1749266265382,0.80292,2489.0,2488.5,5.68607]
[1749266267885,2.81859,2489.1,2488.5,6.32897]
[1749266268087,0.80295,2488.9,2488.5,6.32897]
[1749266268286,2.0157,2489.1,2488.5,5.68607]
[1749266268581,2.00746,2488.8,2488.3,3.2078]
[1749266268788,0.8031,2488.4,2488.3,8.0878]
[1749266268990,1.9315,2488.7,2488.0,5.5512]
[1749266268991,0.8032,2488.1,2488.0,5.5512]
[1749266269992,0.80319,2488.2,2488.0,6.35443]
[1749266270592,0.8032,2488.1,2488.0,5.5512]
[1749266270888,0.8032,2488.1,2488.0,0.6712]
[1749266271089,1.3638,2488.3,2488.0,4.88]
[1749266271282,0.80322,2488.1,2488.0,4.88]
[1749266271485,1.3638,2488.3,2487.9,0.00602482]